fUST/lending_fUST_20251026
["ID","MTS","AMOUNT","RATE_DAILY","PERIOD"]
[392408365,1761441278469,-500.0,0.00015103,2]
[392408366,1761441278498,-500.0,0.00015103,2]
[392408367,1761441278526,-197.40857974,0.00015103,2]
[392408368,1761441278623,-302.59142026,0.00015103,2]
[392408369,1761441278649,-272.16481839,0.00015103,2]
[392408370,1761441278678,-500.0,0.00015103,2]
[392408371,1761441278706,-500.0,0.00015103,2]
[392408372,1761441278732,-500.0,0.00015103,2]
[392408373,1761441278760,-500.0,0.00015103,2]
[392408374,1761441278788,-500.0,0.00015103,2]
[392408375,1761441278816,-500.0,0.00015103,2]
[392408376,1761441278843,-500.0,0.00015103,2]
[392408377,1761441278870,-500.0,0.00015103,2]
[392408378,1761441278898,-350.4975227,0.00015103,2]
[392408379,1761441279263,-149.5024773,0.00015103,2]
[392408380,1761441279273,-290.7447302,0.00015103,2]
[392408381,1761441279282,-59.7527925,0.00015103,2]
[392408382,1761441287390,-440.2472075,0.00015103,2]
[392408383,1761441287416,-500.0,0.00015103,2]
[392408384,1761441287444,-500.0,0.00015103,2]
[392408385,1761441287470,-500.0,0.00015103,2]
[392408386,1761441287500,-500.0,0.00015103,2]
[392408387,1761441287525,-590.38392984,0.00015103,2]
[392408388,1761441287554,-500.0,0.00015103,2]
[392408389,1761441287582,-500.0,0.00015103,2]
[392408390,1761441287612,-500.0,0.00015103,2]
[392408391,1761441287642,-438.74772532,0.00015103,2]
[392408392,1761441287750,-61.25227468,0.00015103,2]
[392408393,1761441287776,-500.0,0.00015103,2]
[392408394,1761441287803,-500.0,0.00015103,2]
[392408395,1761441287830,-500.0,0.00015103,2]
[392408396,1761441287857,-500.0,0.00015103,2]
[392408397,1761441287884,-500.0,0.00015103,2]
[392408398,1761441287912,-500.0,0.00015103,2]
[392408399,1761441287939,-500.0,0.00015103,2]
[392408400,1761441287968,-500.0,0.00015103,2]
[392408401,1761441287995,-500.0,0.00015103,2]
[392408402,1761441288022,-377.50545064,0.00015103,2]
[392408403,1761441288104,-122.49454936,0.00015103,2]
[392408404,1761441288133,-500.0,0.00015103,2]
[392408405,1761441288160,-500.0,0.00015103,2]
[392408406,1761441288187,-500.0,0.00015103,2]
[392408407,1761441288216,-500.0,0.00015103,2]
[392408408,1761441288243,-420.12671104,0.00015103,2]
[392408409,1761441288272,-500.0,0.00015103,2]
[392408410,1761441288300,-500.0,0.00015103,2]
[392408411,1761441288325,-500.0,0.00015103,2]
[392408412,1761441288354,-609.1198908,0.00015103,2]
[392408413,1761441288382,-196.5276976,0.00015103,2]
[392408414,1761441288449,-303.4723024,0.00015103,2]
[392408415,1761441288481,-500.0,0.00015103,2]
[392408416,1761441288507,-500.0,0.00015103,2]
[392408417,1761441288534,-500.0,0.00015103,2]
[392408418,1761441288576,-500.0,0.00015103,2]
[392408419,1761441288607,-500.0,0.00015103,2]
[392408420,1761441288635,-500.0,0.00015103,2]
[392408421,1761441288665,-500.0,0.00015103,2]
[392408422,1761441288695,-500.0,0.00015103,2]
[392408423,1761441288725,-500.0,0.00015103,2]
[392408424,1761441288882,-500.0,0.00015103,2]
[392408425,1761441288912,-500.0,0.00015103,2]
[392408426,1761441288941,-500.0,0.00015103,2]
[392408427,1761441288970,-500.0,0.00015103,2]
[392408428,1761441289000,-500.0,0.00015103,2]
[392408429,1761441289029,-500.0,0.00015103,2]
[392408430,1761441289058,-500.0,0.00015103,2]
[392408431,1761441289087,-500.0,0.00015103,2]
[392408432,1761441289116,-500.0,0.00015103,2]
[392408433,1761441289146,-448.75360108,0.00015103,2]
[392408434,1761441289253,-500.0,0.00015103,2]
[392408435,1761441289282,-500.0,0.00015103,2]
[392408436,1761441289311,-500.0,0.00015103,2]
[392408437,1761441290227,-500.0,0.00015104,2]
[392408438,1761441290248,-500.0,0.00015104,2]
[392408439,1761441290261,-7000.01,0.00015104,2]
[392408440,1761441290274,-10000.01,0.00015104,2]
[392408441,1761441290287,-10000.01,0.00015104,2]
[392408442,1761441290311,-10000.01,0.00015104,2]
[392408443,1761441294636,-10000.01,0.00015104,2]
[392408444,1761441294649,-10000.01,0.00015104,2]
[392408445,1761441294715,-10000.01,0.00015104,2]
[392408446,1761441294832,-10000.01,0.00015104,2]
[392408447,1761441294951,-10000.01,0.00015104,2]
[392408448,1761441295078,-10000.01,0.00015104,2]
[392408449,1761441317838,-300.0,0.00014952,2]
[392408450,1761441323722,1670.0,0.00014952,2]
[392408451,1761441329368,-242.49542036,0.00015102,2]
[392408452,1761441331760,196.54871324,0.00014951,2]
[392408453,1761441347909,257.50457964,0.00014951,2]
[392408454,1761441370811,557.50457964,0.00014951,2]
[392408455,1761441393321,557.50457964,0.00014951,2]
[392408456,1761441395747,548.33561069,0.0001501,2]
[392408457,1761441399912,2034.80968811,0.00014902,2]
[392408458,1761441416813,557.50457964,0.00014951,2]
[392408459,1761441439075,300.0,0.0001495,2]
[392408460,1761441462906,1500.0,0.0001495,2]
[392408461,1761441485314,1220.2976694,0.0001495,2]
[392408462,1761441485335,279.7023306,0.0001495,2]
[392408463,1761441508274,1500.0,0.0001495,2]
[392408464,1761441518584,220.43717552,0.00014908,2]
[392408465,1761441531244,1500.0,0.0001495,2]
[392408466,1761441553579,300.0,0.00014949,2]
[392408467,1761441576224,300.0,0.00014949,2]
[392408468,1761441598371,300.0,0.00014949,2]
[392408469,1761441605292,6738.1874894,0.0001501,2]
[392408470,1761441621829,2361.8225106,0.00014944,2]
[392408471,1761441621851,1646.8323789,0.00014944,2]
[392408472,1761441644759,191.32679194,0.00014906,2]
[392408473,1761441676705,479.79365938,0.00015,2]
[392408474,1761441695425,800.0,0.00014985,2]
[392408475,1761441707688,848.8078247,0.00014099,2]
[392408476,1761441728416,307.19743888,0.00014533,2]
[392408477,1761441730716,552.95538998,0.00014533,2]
[392408478,1761441732625,983.03180441,0.00014533,2]
[392408479,1761441734421,1535.9871944,0.00014533,2]
[392408480,1761441736329,2209.60973837,0.00014533,2]
[392408481,1761441744922,444.46777904,0.00014101,2]
[392408482,1761441744943,6539.47791446,0.00014101,2]
[392408483,1761441795375,1228.703139,0.00013699,2]
[392408485,1761441823240,200.70929536,0.00014996,2]
[392408486,1761441863939,-800.0,0.00015025,2]
[392408487,1761441863969,-800.0,0.00015057,2]
[392408488,1761441863998,-800.0,0.0001508,2]
[392408489,1761441864027,-800.0,0.00015087,2]
[392408490,1761441864055,-1200.0,0.00015094,2]
[392408491,1761441864088,-221.64,0.00015094,3]
[392408492,1761441864116,-91.81,0.00015094,3]
[392408493,1761441864375,409.97151304,0.00014533,2]
[392408494,1761441869623,-196.0,0.00014573,2]
[392408495,1761441871946,-155.14049997,0.00014573,2]
[392408496,1761441882226,-152.85950003,0.00014573,2]
[392408497,1761441883114,152.85950003,0.00014427,2]
[392408498,1761441905706,237.3434521,0.00014719,2]
[392408499,1761441914485,-246.35360365,0.00014868,2]
[392408500,1761441985700,500.0,0.00030137,120]
[392408501,1761441997863,246.35360365,0.0001912,9]
[392408504,1761442062940,-800.0,0.00014912,2]
[392408505,1761442080900,-800.0,0.00014957,2]
[392408506,1761442091703,250.0,0.00014543,2]
[392408507,1761442099100,-419.81945194,0.00014998,2]
[392408512,1761442116327,-800.0,0.00015001,2]
[392408513,1761442134695,-4609.46000848,0.0001501,2]
[392408514,1761442134799,-781.08998304,0.0001501,2]
[392408515,1761442152960,-800.0,0.00015021,2]
[392408516,1761442214774,199.84406422,0.00014903,2]
[392408587,1761442232441,-800.0,0.00015054,2]
[392408589,1761442232451,-408.42441462,0.00015067,2]
[392408806,1761442237998,-391.57558538,0.00015067,2]
[392408807,1761442238009,-500.0,0.00015092,2]
[392408808,1761442238019,-500.0,0.00015092,2]
[392408809,1761442238030,-500.0,0.00015092,2]
[392408810,1761442238041,-500.0,0.00015092,2]
[392408811,1761442238051,-500.0,0.00015092,2]
[392408812,1761442238062,-158.81321627,0.00015092,2]
[392408813,1761442238072,-500.0,0.00015092,2]
[392408814,1761442238083,-498.1893723,0.00015092,2]
[392408815,1761442238093,-500.0,0.00015092,2]
[392408817,1761442238104,-500.0,0.00015092,2]
[392408818,1761442238114,-500.0,0.00015092,2]
[392408819,1761442238125,-500.0,0.00015092,2]
[392408820,1761442238136,-500.0,0.00015092,2]
[392408821,1761442238147,-542.88349588,0.00015092,2]
[392408822,1761442238160,-500.0,0.00015092,2]
[392408823,1761442238171,-500.0,0.00015092,2]
[392408824,1761442238181,-500.0,0.00015092,2]
[392408825,1761442238192,-500.0,0.00015092,2]
[392408826,1761442238202,-500.0,0.00015092,2]
[392408827,1761442238213,-500.0,0.00015092,2]
[392408828,1761442238223,-500.0,0.00015092,2]
[392408829,1761442238234,-500.0,0.00015092,2]
[392408830,1761442238245,-500.0,0.00015092,2]
[392408831,1761442238255,-500.0,0.00015092,2]
[392408832,1761442238266,-500.0,0.00015092,2]
[392408833,1761442238276,-207.24527925,0.00015092,2]
[392408834,1761442238289,-292.75472075,0.00015092,2]
[392408835,1761442238300,-500.0,0.00015092,2]
[392408836,1761442238310,-500.0,0.00015092,2]
[392408837,1761442238320,-500.0,0.00015092,2]
[392408838,1761442238331,-500.0,0.00015092,2]
[392408839,1761442238341,-500.0,0.00015092,2]
[392408840,1761442238352,-500.0,0.00015092,2]
[392408841,1761442238362,-500.0,0.00015092,2]
[392408842,1761442238373,-500.0,0.00015092,2]
[392408843,1761442238383,-253.41096239,0.00015092,2]
[392408844,1761442238404,-246.58903761,0.00015092,2]
[392408845,1761442238415,-379.59855958,0.00015092,2]
[392408846,1761442238426,-249.3095426,0.00015092,2]
[392408853,1761442243316,-250.6904574,0.00015092,2]
[392408854,1761442243326,-500.0,0.00015092,2]
[392408855,1761442243336,-319.12785893,0.00015092,2]
[392408856,1761442243345,-500.0,0.00015092,2]
[392408857,1761442243354,-389.10447988,0.00015092,2]
[392408858,1761442243363,-500.0,0.00015092,2]
[392408860,1761442243372,-227.62026844,0.00015092,2]
[392408861,1761442243383,-500.0,0.00015092,2]
[392408862,1761442243394,-500.0,0.00015092,2]
[392408863,1761442243405,-500.0,0.00015092,2]
[392408864,1761442243414,-500.0,0.00015092,2]
[392408865,1761442243424,-500.0,0.00015092,2]
[392408866,1761442243432,-500.0,0.00015092,2]
[392408867,1761442243441,-500.0,0.00015092,2]
[392408868,1761442243451,-500.0,0.00015092,2]
[392408869,1761442243461,-132.65449635,0.00015092,2]
[392408883,1761442246192,-367.34550365,0.00015092,2]
[392408884,1761442246202,-500.0,0.00015092,2]
[392408885,1761442246211,-500.0,0.00015092,2]
[392408886,1761442246220,-500.0,0.00015092,2]
[392408887,1761442246229,-500.0,0.00015092,2]
[392408888,1761442246239,-500.0,0.00015092,2]
[392408889,1761442246250,-500.0,0.00015092,2]
[392408890,1761442246261,-300.0,0.00015092,2]
[392408891,1761442246274,-170.0,0.00015092,2]
[392408892,1761442246283,-1200.0,0.00015092,2]
[392408893,1761442246291,-172.36482751,0.00015093,2]
[392408894,1761442246300,-243.49014884,0.00015093,2]
[392408895,1761442246312,-203.09359304,0.00015093,2]
[392408896,1761442246323,-1572.79954029,0.00015094,2]
[392408897,1761442246339,-7346.31060276,0.00015094,2]
[392408898,1761442246350,-3186.78922494,0.00015094,2]
[392408899,1761442247231,516.81027391,0.00014994,2]
[392408900,1761442274859,173.28,0.0001812,7]
[392408901,1761442280569,419.0,0.00018981,7]
[392408903,1761442287378,4451.7873046,0.0001501,2]
[392408904,1761442323797,233.23258604,0.00014941,2]
[392408905,1761442356417,287.73,0.00030136,120]
[392408906,1761442367428,190.930452,0.00018679,7]
[392408907,1761442384802,150.60288462,0.0001846,7]
[392408908,1761442388984,582.0,0.0003013,120]
[392408910,1761442479475,999.0,0.00014095,2]
[392408912,1761442527463,453.73325861,0.00014993,2]
[392408913,1761442579442,3145.60251262,0.00015004,2]
[392408914,1761442579479,10000.01,0.00015004,2]
[392408915,1761442579503,10000.01,0.00015004,2]
[392408916,1761442579526,10000.01,0.00015004,2]
[392408917,1761442579548,10000.01,0.00015004,2]
[392408918,1761442579571,10000.01,0.00015004,2]
[392408919,1761442579594,10000.01,0.00015004,2]
[392408920,1761442579618,10000.01,0.00015004,2]
[392408921,1761442579641,10000.01,0.00015004,2]
[392408922,1761442579663,10000.01,0.00015004,2]
[392408923,1761442597091,-314.39042324,0.00015003,2]
[392408924,1761442597120,-505.77113646,0.00015003,2]
[392408925,1761442597152,-500.0,0.00015003,2]
[392408926,1761442597180,-486.62206218,0.00015003,2]
[392408927,1761442597209,-500.0,0.00015003,2]
[392408928,1761442597239,-164.06184105,0.00015003,2]
[392408929,1761442597271,-500.0,0.00015003,2]
[392408930,1761442597300,-500.0,0.00015003,2]
[392408931,1761442597330,-500.0,0.00015003,2]
[392408932,1761442597361,-500.0,0.00015003,2]
[392408933,1761442597388,-492.98778533,0.00015003,2]
[392408934,1761442597522,-500.0,0.00015003,2]
[392408935,1761442597550,-301.42339994,0.00015003,2]
[392408936,1761442597579,-622.76202685,0.00015003,2]
[392408937,1761442597608,-500.0,0.00015003,2]
[392408938,1761442597637,-500.0,0.00015003,2]
[392408939,1761442597673,-500.0,0.00015003,2]
[392408940,1761442597705,-500.0,0.00015003,2]
[392408941,1761442604039,-2698.05076499,0.00015004,2]
[392408942,1761442604096,-10000.01,0.00015004,2]
[392408943,1761442604230,-10000.01,0.00015004,2]
[392408944,1761442604365,-10000.01,0.00015004,2]
[392408945,1761442609439,-10000.01,0.00015004,2]
[392408946,1761442609575,-10000.01,0.00015004,2]
[392408947,1761442609693,-10000.01,0.00015004,2]
[392408948,1761442610064,-10000.01,0.00015004,2]
[392408949,1761442610103,-10000.01,0.00015004,2]
[392408950,1761442610131,-10000.01,0.00015004,2]
[392408951,1761442615554,-10000.01,0.00015004,2]
[392408952,1761442615878,-2289.0,0.00014934,2]
[392408953,1761442615910,-5422.01,0.00015004,2]
[392408954,1761442615970,-10000.01,0.00015004,2]
[392408955,1761442616147,-10000.01,0.00015004,2]
[392408956,1761442627553,-2289.0,0.0001486,2]
[392408957,1761442627585,-300.0,0.00015003,2]
[392408958,1761442627633,-4822.01,0.00015004,2]
[392408959,1761442627764,-3561.42984368,0.00014991,2]
[392408960,1761442627802,-2877.15031264,0.00015004,2]
[392408961,1761442627876,-10000.01,0.00015004,2]
[392408962,1761442627983,-10000.01,0.00015004,2]
[392408963,1761442628095,-10000.01,0.00015004,2]
[392408964,1761442628217,-10000.01,0.00015004,2]
[392408965,1761442645590,-10000.01,0.00015004,2]
[392408966,1761442645677,-10000.01,0.00015004,2]
[392408967,1761442645816,-10000.01,0.00015004,2]
[392408968,1761442645925,-10000.01,0.00015004,2]
[392408970,1761442655018,-10000.01,0.00015004,2]
[392408971,1761442655317,-10000.01,0.00015004,2]
[392408973,1761442672890,-10000.01,0.00015004,2]
[392408975,1761442685513,-800.0,0.00014071,2]
[392408976,1761442685549,-8400.01,0.00015004,2]
[392408980,1761442715809,-10000.01,0.00015004,2]
[392408982,1761442721588,-10000.01,0.00015004,2]
[392408984,1761442734688,-2634.82640975,0.00015004,2]
[392408985,1761442734715,-1200.0,0.00015091,2]
[392408986,1761442734764,-2330.3571805,0.00015093,2]
[392408988,1761442751152,10000.01,0.00014904,2]
[392408989,1761442751173,10000.01,0.00014904,2]
[392408990,1761442751195,10000.01,0.00014904,2]
[392408991,1761442751217,10000.01,0.00014904,2]
[392408992,1761442751238,10000.01,0.00014904,2]
[392408993,1761442751258,10000.01,0.00014904,2]
[392408994,1761442751279,10000.01,0.00014904,2]
[392408995,1761442751300,10000.01,0.00014904,2]
[392408996,1761442751326,10000.01,0.00014904,2]
[392408999,1761442776498,-3808.99017639,0.00014607,2]
[392409000,1761442776812,-2382.02964722,0.00014607,2]
[392409001,1761442776929,-3808.99017639,0.00014755,2]
[392409002,1761442777047,-2382.02964722,0.00014755,2]
[392409003,1761442777600,-309.18838915,0.00014045,2]
[392409004,1761442777644,-565.70497905,0.00014045,2]
[392409005,1761442782297,-4104.54074746,0.00014755,2]
[392409006,1761442782392,-10000.01,0.00014755,2]
[392409007,1761442782500,-2718.01360138,0.00014755,2]
[392409008,1761442782522,-4563.98279724,0.00014755,2]
[392409009,1761442782602,-10000.01,0.00014904,2]
[392409010,1761442782699,-10000.01,0.00014904,2]
[392409011,1761442782824,-10000.01,0.00014904,2]
[392409012,1761442782931,-10000.01,0.00014904,2]
[392409013,1761442783052,-10000.01,0.00014904,2]
[392409014,1761442783462,-10000.01,0.00014904,2]
[392409015,1761442788277,-10000.01,0.00014904,2]
[392409016,1761442788389,-10000.01,0.00014904,2]
[392409017,1761442799439,-211.31757432,0.00014607,2]
[392409018,1761442801217,-2745.16090016,0.00014607,2]
[392409019,1761442801239,-4509.68819968,0.00014607,2]
[392409020,1761442801631,-216.4019123,0.00014755,2]
[392409021,1761442807370,-900.0,0.00014606,2]
[392409022,1761442807415,-300.0,0.00014754,2]
[392409023,1761442807452,-300.0,0.00014754,2]
[392409024,1761442807491,-300.0,0.00014754,2]
[392409025,1761442807554,-300.0,0.00014754,2]
[392409026,1761442807771,-5800.01,0.00014755,2]
[392409027,1761442808132,-10000.01,0.00014755,2]
[392409028,1761442808205,-3567.73632206,0.00014755,2]
[392409029,1761442808234,-397.01660124,0.0001489,2]
[392409030,1761442808394,-2070.5041534,0.00014904,2]
[392409031,1761442808559,-10000.01,0.00014904,2]
[392409032,1761442808799,-10000.01,0.00014904,2]
[392409033,1761442808880,-10000.01,0.00014904,2]
[392409034,1761442809004,-10000.01,0.00014904,2]
[392409035,1761442815510,-2538.47308343,0.00014755,2]
[392409036,1761442815536,-4923.06383314,0.00014755,2]
[392409037,1761442815623,-300.0,0.000149,2]
[392409038,1761442815658,-9400.01,0.00014904,2]
[392409040,1761442827668,-10000.01,0.00014904,2]
[392409041,1761442827810,-10000.01,0.00014904,2]
[392409042,1761442827975,-10000.01,0.00014904,2]
[392409043,1761442828138,-10000.01,0.00014904,2]
[392409044,1761442828254,-10000.01,0.00014904,2]
[392409045,1761442828575,-10000.01,0.00014904,2]
[392409046,1761442828593,-10000.01,0.00014904,2]
[392409047,1761442828629,-10000.01,0.00014904,2]
[392409048,1761442836818,-10000.01,0.00014755,2]
[392409049,1761442837017,-10000.01,0.00014755,2]
[392409050,1761442846385,-243.23387263,0.00014607,2]
[392409051,1761442852084,-153.53254037,0.00014461,2]
[392409052,1761442854652,-221.65913343,0.00014461,2]
[392409053,1761442857444,-152.65154366,0.00014461,2]
[392409054,1761442866935,-2930.01765939,0.00014461,2]
[392409055,1761442866963,-300.0,0.00014606,2]
[392409056,1761442867011,-3539.97468122,0.00014607,2]
[392409057,1761442867134,-10000.01,0.00014607,2]
[392409058,1761442867220,-1223.88528704,0.00014607,2]
[392409059,1761442867254,-7552.23942592,0.00014755,2]
[392409060,1761442867337,-10000.01,0.00014755,2]
[392409061,1761442867462,-10000.01,0.00014755,2]
[392409062,1761442867606,-1212.18427786,0.00014755,2]
[392409063,1761442867627,-7575.64144428,0.00014755,2]
[392409064,1761442867694,-226.61031115,0.00014804,2]
[392409065,1761442867720,-379.14346814,0.00014903,2]
[392409066,1761442867754,-185.69527566,0.00014903,2]
[392409067,1761442867851,-8417.1118901,0.00014904,2]
[392409068,1761442873048,-168.0,0.00014788,2]
[392409069,1761442873085,-9664.01,0.00014904,2]
[392409070,1761442873182,-10000.01,0.00014904,2]
[392409071,1761442873281,-10000.01,0.00014904,2]
[392409072,1761442882346,-300.0,0.00014751,2]
[392409073,1761442888547,300.0,0.00014751,2]
[392409074,1761442897062,300.0,0.00014751,2]
[392409075,1761442904980,300.0,0.00014751,2]
[392409076,1761442909883,1626.66071165,0.000148,2]
[392409077,1761442913544,300.0,0.00014751,2]
[392409078,1761442921522,300.0,0.00014751,2]
[392409079,1761442929929,300.0,0.00014751,2]
[392409080,1761442937797,300.0,0.00014751,2]
[392409081,1761442953018,600.0,0.00014751,2]
[392409082,1761442960814,900.0,0.00014751,2]
[392409083,1761442977217,1200.0,0.00014751,2]
[392409084,1761442985052,1500.0,0.00014751,2]
[392409085,1761442998312,300.0,0.000148,2]
[392409086,1761443001357,300.0,0.00014753,2]
[392409087,1761443009350,300.0,0.00014751,2]
[392409088,1761443010423,300.0,0.000148,2]
[392409090,1761443021355,300.0,0.000148,2]
[392409091,1761443022409,175.26,0.00012329,2]
[392409092,1761443025521,900.0,0.00014751,2]
[392409093,1761443030672,1421.7085184,0.0001393,2]
[392409094,1761443032061,300.0,0.000148,2]
[392409095,1761443032826,876.35,0.00012329,2]
[392409096,1761443033387,481.27735918,0.00014751,2]
[392409097,1761443042784,300.0,0.000148,2]
[392409101,1761443048706,900.0,0.00014751,2]
[392409102,1761443059726,1003.9900488,0.00013952,2]
[392409103,1761443070158,300.0,0.000148,2]
[392409104,1761443071110,4648.0,0.000301,120]
[392409105,1761443071838,300.0,0.00014753,2]
[392409106,1761443072053,300.0,0.000148,2]
[392409107,1761443074386,208.86120804,0.00014443,2]
[392409108,1761443076726,375.95017447,0.00014443,2]
[392409109,1761443078266,668.35586573,0.00014443,2]
[392409110,1761443080264,588.25682538,0.00014443,2]
[392409111,1761443080284,455.00490878,0.00014443,2]
[392409112,1761443080740,300.0,0.000148,2]
[392409113,1761443089329,467.55717556,0.00014804,2]
[392409114,1761443094835,300.0,0.00014753,2]
[392409115,1761443117959,2700.0,0.00014753,2]
[392409116,1761443133340,168.0,0.00014844,2]
[392409117,1761443139176,168.0,0.00014715,2]
[392409118,1761443140970,2700.0,0.00014753,2]
[392409119,1761443164356,2700.0,0.00014753,2]
[392409120,1761443177301,41.44791566,0.00014802,2]
[392409121,1761443177323,115.69729707,0.00014802,2]
[392409122,1761443182289,157.14521272,0.00014802,2]
[392409123,1761443187294,157.14521272,0.00014803,2]
[392409124,1761443187343,300.0,0.00014752,2]
[392409125,1761443192358,157.14521272,0.00014803,2]
[392409126,1761443210522,300.0,0.00014752,2]
[392409127,1761443234068,300.0,0.00014752,2]
[392409128,1761443236404,158.95905325,0.00014441,2]
[392409129,1761443245711,4835.178359,0.00013915,2]
[392409130,1761443247586,3518.73965252,0.0001487,2]
[392409131,1761443247607,6481.26034748,0.0001487,2]
[392409132,1761443257447,300.0,0.00014752,2]
[392409133,1761443280648,1500.0,0.00014752,2]
[392409134,1761443284815,1139.0,0.0001487,2]
[392409135,1761443296587,579.74965252,0.00014752,2]
[392409136,1761443296608,920.25034748,0.00014752,2]
[392409137,1761443305053,1500.0,0.00014752,2]
[392409138,1761443310225,7101.02642957,0.00014802,2]
[392409139,1761443320904,478.73322295,0.00014752,2]
[392409140,1761443320926,1021.26677705,0.00014752,2]
[392409141,1761443325878,169.1077738,6.957e-05,2]
[392409142,1761443328752,1500.0,0.00014752,2]
[392409145,1761443337312,1500.0,0.00014752,2]
[392409146,1761443345166,1200.0,0.00014752,2]
[392409147,1761443353766,300.0,0.00014751,2]
[392409148,1761443354792,300.0,0.000148,2]
[392409149,1761443361579,300.0,0.00014751,2]
[392409150,1761443365882,300.0,0.000148,2]
[392409151,1761443370637,300.0,0.00014751,2]
[392409152,1761443377013,300.0,0.000148,2]
[392409153,1761443378423,300.0,0.00014751,2]
[392409154,1761443386247,300.0,0.00014751,2]
[392409155,1761443395392,300.0,0.00014751,2]
[392409156,1761443403920,1200.0,0.00014751,2]
[392409157,1761443412069,709.63544915,0.00014751,2]
[392409158,1761443412092,1880.07120756,0.00014751,2]
[392409159,1761443417629,7383.6588302,0.00013915,2]
[392409160,1761443419876,736.27996224,0.00014751,2]
[392409161,1761443419898,959.90005163,0.00014751,2]
[392409162,1761443424666,514.25922191,0.00014801,2]
[392409163,1761443427933,2700.0,0.00014751,2]
[392409234,1761443433106,-300.0,0.000149,2]
[392409235,1761443433116,-300.0,0.000149,2]
[392409236,1761443433125,-300.0,0.000149,2]
[392409237,1761443433134,-300.0,0.000149,2]
[392409238,1761443433143,-300.0,0.000149,2]
[392409239,1761443433153,-1200.0,0.000149,2]
[392409240,1761443433162,-301.01497582,0.000149,2]
[392409241,1761443433171,-361.18745649,0.000149,2]
[392409242,1761443433180,-500.0,0.000149,2]
[392409243,1761443433190,-1200.0,0.00014901,2]
[392409244,1761443433199,-500.0,0.00014903,2]
[392409245,1761443433208,-5082.82366885,0.00014904,2]
[392409246,1761443435797,2700.0,0.00014751,2]
[392409279,1761443438076,-500.0,0.000149,2]
[392409281,1761443438084,-500.0,0.000149,2]
[392409283,1761443438094,-500.0,0.000149,2]
[392409285,1761443438103,-500.0,0.000149,2]
[392409287,1761443438111,-500.0,0.000149,2]
[392409289,1761443438120,-389.99479004,0.000149,2]
[392409291,1761443438129,-500.0,0.000149,2]
[392409293,1761443438139,-382.06319882,0.000149,2]
[392409295,1761443438148,-500.0,0.000149,2]
[392409297,1761443438157,-500.0,0.000149,2]
[392409299,1761443438167,-500.0,0.000149,2]
[392409301,1761443438177,-500.0,0.000149,2]
[392409303,1761443438186,-500.0,0.000149,2]
[392409305,1761443438195,-500.0,0.000149,2]
[392409307,1761443438205,-500.0,0.000149,2]
[392409309,1761443438215,-500.0,0.000149,2]
[392409311,1761443438224,-500.0,0.000149,2]
[392409313,1761443438234,-452.79601475,0.000149,2]
[392409315,1761443438243,-500.0,0.000149,2]
[392409317,1761443438253,-500.0,0.000149,2]
[392409319,1761443438262,-500.0,0.000149,2]
[392409321,1761443438272,-500.0,0.000149,2]
[392409323,1761443438281,-500.0,0.000149,2]
[392409325,1761443438291,-500.0,0.000149,2]